Cogmind - Beta 13 --- EXPLORER MODE // 2024.05.08 @ 23:32:35 Player: tcfire Result: Destroyed by Y-54 Guardian with Flak Gun Performance ------------- Evolutions (4) 2000 Regions Visited (10) 2000 Robots Destroyed (83) 415 Value Destroyed (3581) 3581 Prototype IDs (5) 100 Alien Tech Used (0) 0 Bonus (1157) 1157 TOTAL SCORE: 9253 Bonus ------- High Alert Combat Kills 257 Entered Garrisons 400 Used RIF Installer 500 Cogmind --------- Core Integrity 0/850 Matter 300/300 Energy 100/100 System Corruption 9% Temperature Cool (18) Movement Core (50) Location -6/Garrison Parts ------- > --- POWER (2) -------- (None) > --- PROPULSION (4) --- (None) > --- UTILITY (7) ------ Advanced Visual Processing Unit Relay Coupler [NC] (32) > --- WEAPON (3) ------- (None) > --- INVENTORY (5) ---- Relay Coupler [NC] (52) Relay Coupler [NC] (59) Relay Coupler [Swarmer] (64) Relay Coupler [Hunter] (38) Relay Coupler [Heavy] (30) Peak State ------------ > --- POWER ------------ Light Nuclear Core Micro Nuclear Core > --- PROPULSION ------- Wheel Compact Wheel Compact Wheel Armored Wheel > --- UTILITY ---------- Cryofiber Web Huge Storage Unit Machine Analyzer Hacking Suite Hacking Suite > --- WEAPON ----------- Heavy Linear Accelerator Remote Datajack > --- INVENTORY -------- Ion Engine VTOL Module VTOL Module VTOL Module VTOL Module Advanced Terrain Scan Processor Transmission Jammer Transmission Jammer Reaction Control System Phase Shifter Improved Shield Generator Hacking Suite Authchip [R/Combat] Relay Coupler [NC] Relay Coupler [NC] Relay Coupler [Swarmer] Relay Coupler [Cutter] Relay Coupler [Grunt] Relay Coupler [Duelist] Relay Coupler [Sentry] Heavy Linear Accelerator Heavy Linear Accelerator [Rating: 54] Favorites ----------- Power Ion Engine Engine Ion Engine Power Core Micro Nuclear Core Propulsion Compact Wheel Treads Light Treads Wheel Compact Wheel Flight Unit VTOL Module Utility Hacking Suite Device Heat Sink Storage Huge Storage Unit Processor Machine Analyzer Hackware Hacking Suite Weapon Advanced Assault Cannon Energy Gun EM Pulse Gun Energy Cannon Plasma Cannon Ballistic Gun Assault Rifle Ballistic Cannon Advanced Assault Cannon Special Weapon Remote Datajack Build | -11 -10 -9 -8 -7 -7 -7 -7 -7 -6 -6 ------- Run | Yrd Mat Mat Mat Fac Gar Fac Low Low Fac Gar Slots Evolved 9 | . 1 2 2 2 . . . . 2 . Power 1 | . . 1 . . . . . . . . Propulsion 2 | . . . 1 1 . . . . . . Utility 5 | . 1 . 1 1 . . . . 2 . Weapon 1 | . . 1 . . . . . . . . Parts Attached 103 | 7 3 15 10 11 12 28 3 1 7 6 Power 16 | 1 . 3 1 2 1 5 1 . 1 1 Engine 10 | 1 . 3 1 2 1 1 1 . . . Core 6 | . . . . . . 4 . . 1 1 Reactor . | . . . . . . . . . . . Propulsion 26 | 2 . 4 3 3 3 7 . . 2 2 Treads 3 | 2 . . . . . 1 . . . . Leg . | . . . . . . . . . . . Wheel 12 | . . 4 2 3 3 . . . . . Hover . | . . . . . . . . . . . Flight 11 | . . . 1 . . 6 . . 2 2 Utility 31 | 2 2 2 3 3 4 7 2 1 3 2 Device 16 | 1 2 . 3 2 2 3 1 1 1 . Storage 4 | 1 . 2 . . . 1 . . . . Processor 3 | . . . . 1 . . . . 2 . Hackware 8 | . . . . . 2 3 1 . . 2 Protection . | . . . . . . . . . . . Artifact . | . . . . . . . . . . . Weapon 30 | 2 1 6 3 3 4 9 . . 1 1 Energy Gun 2 | 1 . 1 . . . . . . . . Energy Cannon 4 | . . . 3 . . . . . 1 . Ballistic Gun 4 | 1 . 3 . . . . . . . . Ballistic Cannon 11 | . 1 2 . 3 4 1 . . . . Launcher . | . . . . . . . . . . . Special Weapon 9 | . . . . . . 8 . . . 1 Impact Weapon . | . . . . . . . . . . . Slashing Weapon . | . . . . . . . . . . . Piercing Weapon . | . . . . . . . . . . . Special Melee Weapon . | . . . . . . . . . . . Unidentified Prototypes 5 | . . 2 1 . . 1 . . 1 . Corrupted Parts 1 | . . . . . . . 1 . . . System Corruption 1 | . . . . . . . 1 . . . Parts Lost 37 | . . 1 . 1 7 16 . . 1 11 Power 8 | . . . . . 2 4 . . . 2 Propulsion 15 | . . . . 1 3 7 . . . 4 Utility 8 | . . . . . 2 2 . . . 4 Weapon 6 | . . 1 . . . 3 . . 1 1 Highest Loss Streak 11 | . . 1 . 1 2 3 . . 1 11 To Critical Strikes . | . . . . . . . . . . . Average Slot Usage (%) 80 | . 96 95 96 99 95 73 47 57 69 59 Engine 10 | . 12 20 16 14 13 5 6 7 1 . Core 1 | . . . . . . 3 . . 5 6 Treads 1 | . 25 . . . . . . . . . Wheel 13 | . . 18 21 27 25 13 . . . . Flight 4 | . . . . . . 7 7 7 16 14 Device 13 | . 21 20 25 24 19 5 1 7 8 3 Storage 5 | . 12 10 8 7 7 3 . . . . Processor 2 | . . . . 3 7 3 . . 4 12 Hackware 11 | . . . . . 1 19 24 28 25 22 Energy Cannon 2 | . . . 21 6 . . . . . . Ballistic Gun 1 | . 6 15 2 . . . . . . . Ballistic Cannon 7 | . 5 9 1 14 20 5 . . . . Special Weapon 2 | . . . . . . 4 7 7 6 . Naked Turns . | . . . . . . . . . . . Heaviest Build 128 | 20 23 104 118 128 128 124 16 16 23 19 Greatest Support 63 | 40 40 32 44 60 63 54 5 11 23 29 Greatest Overweight (x) 6 | 6 . 3 4 2 3 4 3 3 1 1 Average Overweight (x) 1 | 1 . 2 2 2 1 . 1 1 . . Largest Inventory Capacity 25 | 10 10 25 25 25 25 25 5 5 5 5 Average Capacity 16 | 8 10 21 25 25 25 14 5 5 5 5 Most Carried 25 | 3 6 22 25 25 25 25 5 5 5 5 Average Carried 13 | 1 3 12 21 23 23 13 3 4 4 4 Final Capacity 25 | 10 10 25 25 25 25 5 5 5 5 5 Final Carried 25 | 1 5 22 22 25 24 4 4 5 5 5 Class Distribution -------------------- 33% | Hacker-Mutant 23% | Hacker-Skirmisher 15% | Hacker-Tank 9% | Hacker-Sprinter 7% | Bothacker-Skirmisher 5% | Hacker-Gunner 3% | Wizard-Mutant Dominant Class ---------------- Hacker-Mutant | -10/Materials Hacker-Gunner | -9/Materials Hacker-Tank | -8/Materials Hacker-Tank | -7/Factory Hacker-Skirmisher | -7/Garrison Bothacker-Skirmisher | -7/Factory Hacker-Mutant | -7/Lower Caves Hacker-Mutant | -7/Lower Caves Hacker-Sprinter | -6/Factory Hacker-Mutant | -6/Garrison Resources | -11 -10 -9 -8 -7 -7 -7 -7 -7 -6 -6 ----------- Run | Yrd Mat Mat Mat Fac Gar Fac Low Low Fac Gar Matter Collected 3029 | 51 23 520 220 174 945 692 60 63 219 62 Remotely . | . . . . . . . . . . . Salvage Created 2331 | . 41 335 668 377 704 206 . . . . Parts 136 | . 4 22 43 20 32 15 . . . . Haulers Intercepted 1 | . . 1 . . . . . . . . Recyclers Shooed 1 | . . 1 . . . . . . . . Parts Field Recycled . | . . . . . . . . . . . Retrieved Matter . | . . . . . . . . . . . Parts Self-Destructed . | . . . . . . . . . . . Prevented . | . . . . . . . . . . . Kills | -11 -10 -9 -8 -7 -7 -7 -7 -7 -6 -6 ------- Run | Yrd Mat Mat Mat Fac Gar Fac Low Low Fac Gar Combat Hostiles Destroyed 60 | . 2 7 11 7 25 8 . . . . Guns 6 | . 2 4 . . . . . . . . Cannons 52 | . . 3 10 6 25 8 . . . . AOE 1 | . . . . 1 . . . . . . Classes Destroyed 12 | . 2 6 1 2 1 . . . . . Worker 5 | . . 2 1 . . 2 . . . . Builder 4 | . . 1 2 . . 1 . . . . Hauler 1 | . . 1 . . . . . . . . Recycler 2 | . . . 1 . . 1 . . . . Operator 3 | . . 1 . 2 . . . . . . Watcher 8 | . 1 2 2 2 . 1 . . . . Swarmer 18 | . 2 2 2 . 10 2 . . . . Grunt 19 | . . 3 4 3 7 2 . . . . Brawler 1 | . . . . 1 . . . . . . Duelist 1 | . . . . 1 . . . . . . Sentry 16 | . . 2 5 2 5 2 . . . . Programmer 5 | . . . . . 3 2 . . . . Best Kill Streak 7 | . 2 4 5 3 7 3 . . . . Combat Bots Only 7 | . 2 2 2 3 7 2 . . . . Max Kills in Single Turn 2 | . 1 2 1 2 2 1 . . . . Gunslinging . | . . . . . . . . . . . Exploded 1 | . . . . 1 . . . . . . Melee . | . . . . . . . . . . . Uniques/NPCs Destroyed . | . . . . . . . . . . . Combat | -11 -10 -9 -8 -7 -7 -7 -7 -7 -6 -6 -------- Run | Yrd Mat Mat Mat Fac Gar Fac Low Low Fac Gar Hostile Shots Fired 913 | . 6 26 41 17 130 489 . . 13 191 Missed 321 | . 2 9 11 4 37 202 . . 4 52 Damage Taken 4382 | . 49 141 219 172 782 1755 . . 70 1194 Core 1529 | . 6 20 43 15 98 495 . . 27 825 Absorbed by Shields 188 | . . . 92 67 . . . . . 29 Ignored by Resistances 2834 | . 32 92 194 140 494 1155 . . 44 683 Regen/Repaired (Parts) 118 | . 15 . . . . 103 . . . . Core Remaining (%) 79 | 100 97 95 92 . . . . 13 . . Volleys Fired 177 | . 4 23 29 12 45 55 1 5 1 2 Largest 3 | . 2 3 3 3 3 2 1 1 1 1 Hottest 240 | . 79 85 240 240 144 131 5 5 85 5 Shots Fired 391 | . 8 54 87 36 135 62 1 5 1 2 Gun 39 | . 7 32 . . . . . . . . Cannon 330 | . 1 22 87 36 135 48 . . 1 . Launcher . | . . . . . . . . . . . Special 22 | . . . . . . 14 1 5 . 2 Kinetic 269 | . 4 52 . 30 135 48 . . . . Thermal 94 | . . . 87 6 . . . . 1 . Explosive . | . . . . . . . . . . . Electromagnetic 6 | . 4 2 . . . . . . . . Robot Hit Streak 18 | . 3 7 16 15 18 14 15 16 17 18 Robot Miss Streak 4 | . 2 1 3 1 2 4 . . . . Penetration Max . | . . . . . . . . . . . Secondary Targets . | . . . . . . . . . . . Shots Hit Robots 224 | . 5 34 54 26 62 39 1 1 1 1 Core Hits 121 | . 3 18 20 17 34 13 . . . 16 Critical Kills 1 | . 1 . . . . . . . . . Critical Parts Destroyed . | . . . . . . . . . . . Critical Strikes 11 | . 2 1 . 1 5 2 . . . . Destroy 1 | . 1 . . . . . . . . . Blast 10 | . 1 1 . 1 5 2 . . . . Melee Attacks . | . . . . . . . . . . . Impact . | . . . . . . . . . . . Slashing . | . . . . . . . . . . . Piercing . | . . . . . . . . . . . Sneak Attacks . | . . . . . . . . . . . Combat Hostiles . | . . . . . . . . . . . Follow-up Attacks . | . . . . . . . . . . . Damage Inflicted 7156 | . 101 677 1380 882 1803 2178 . . 31 104 Guns 330 | . 61 269 . . . . . . . . Cannons 6111 | . 18 331 1380 670 1803 1878 . . 31 . Explosions 611 | . 22 77 . 212 . 300 . . . . Melee . | . . . . . . . . . . . Ramming 104 | . . . . . . . . . . 104 Kinetic 4852 | . 45 588 . 538 1803 1878 . . . . Thermal 1942 | . 22 77 1380 344 . 88 . . 31 . Explosive 212 | . . . . . . 212 . . . . Electromagnetic 46 | . 34 12 . . . . . . . . Impact . | . . . . . . . . . . . Slashing . | . . . . . . . . . . . Piercing . | . . . . . . . . . . . Highest Corruption 9 | . . . . . 1 4 5 5 . 9 Average Corruption 2 | . . . . . 1 1 4 5 . 4 Corruption Purged . | . . . . . . . . . . . Corruption Blocked . | . . . . . . . . . . . Effects 36 | . . . . . 1 14 11 8 . 2 Message Errors 10 | . . . . . . 3 5 2 . . Matter Fused 10 | . . . . . 1 4 2 2 . 1 Heat Flow Errors 2 | . . . . . . . 1 1 . . Energy Discharges 7 | . . . . . . 3 2 2 . . Parts Rejected 1 | . . . . . . 1 . . . . Data Loss (minor) 3 | . . . . . . 1 1 1 . . Data Loss (major) 2 | . . . . . . 1 . . . 1 Alerts 1 | . . . . . . 1 . . . . Overload Shots . | . . . . . . . . . . . Overflow Damage 592 | . . . 41 68 38 445 . . . . Projectiles 546 | . . . 41 37 37 431 . . . . Explosions 46 | . . . . 31 1 14 . . . . Melee . | . . . . . . . . . . . Knockbacks 28 | . . 3 . 3 12 9 . . . 1 Impact 1 | . . . . . . . . . . 1 Kinetic 26 | . . 3 . 3 12 8 . . . . Secondary 1 | . . . . . . 1 . . . . Self-Inflicted Damage 451 | . 17 11 . 147 66 167 . . . 43 Shots 9 | . 1 1 . 3 1 3 . . . . Rammed 40 | . . 1 . . . . . . . 39 Targets Rammed 40 | . . 1 . . . . . . . 39 Kicked . | . . . . . . . . . . . Crushed . | . . . . . . . . . . . Highest Temperature 609 | . 12 66 609 138 267 138 215 234 46 10 Average Temperature 121 | . 12 15 235 51 87 54 113 121 24 3 Received Heat Transfer 1414 | . . 105 134 60 216 558 . . 45 296 Effects 20 | . . . 20 . . . . . . . Shutdowns 7 | . . . 7 . . . . . . . Energy Bleed 5 | . . . 5 . . . . . . . Interference 3 | . . . 3 . . . . . . . Matter Decay 3 | . . . 3 . . . . . . . Short Circuit 2 | . . . 2 . . . . . . . Siege Activations . | . . . . . . . . . . . Robots Corrupted . | . . . . . . . . . . . Combat Hostiles . | . . . . . . . . . . . Parts Fried . | . . . . . . . . . . . Impact Corruptions . | . . . . . . . . . . . Robots Melted 1 | . . . 1 . . . . . . . Combat Hostiles 1 | . . . 1 . . . . . . . Parts Melted 5 | . . . 4 1 . . . . . . Heat Transferred 3387 | . 50 50 2700 450 . 100 . . 37 . Parts Sabotaged . | . . . . . . . . . . . Parts Stolen . | . . . . . . . . . . . Parts Stripped . | . . . . . . . . . . . Power Chain Reactions 2 | . 1 1 . . . . . . . . Alert | -11 -10 -9 -8 -7 -7 -7 -7 -7 -6 -6 ------- Run | Yrd Mat Mat Mat Fac Gar Fac Low Low Fac Gar Peak Influence 792 | . 95 289 220 322 792 536 . . 174 208 Initial 308 | . . 28 . 64 45 308 . . . 88 Average 206 | . 53 144 94 120 486 234 . . 71 135 Maximum Alert Level 3 | . . 1 1 1 3 2 . . . 1 Low Security (%) 57 | 100 100 58 88 84 15 34 . . 100 97 Level 1 23 | . . 41 11 15 14 43 . . . 2 Level 2 14 | . . . . . 47 21 . . . . Level 3 3 | . . . . . 21 . . . . . Level 4 . | . . . . . . . . . . . Level 5 . | . . . . . . . . . . . High Security . | . . . . . . . . . . . Max Security . | . . . . . . . . . . . Squads Dispatched 10 | . . . 1 . . 6 . . 3 . Investigation 3 | . . . . . . 2 . . 1 . Extermination 3 | . . . . . . 3 . . . . Reinforcement 4 | . . . 1 . . 1 . . 2 . Assault . | . . . . . . . . . . . Garrison . | . . . . . . . . . . . Intercept . | . . . . . . . . . . . Searches Triggered . | . . . . . . . . . . . Construction Impeded 1 | . . . . . . 1 . . . . Haulers Reinforced . | . . . . . . . . . . . Active Scanning Responses . | . . . . . . . . . . . Cargo Convoy Interrupts . | . . . . . . . . . . . Stealth | -11 -10 -9 -8 -7 -7 -7 -7 -7 -6 -6 --------- Run | Yrd Mat Mat Mat Fac Gar Fac Low Low Fac Gar Distress Signals 4 | . . 2 1 . . 1 . . . . Communications Jammed . | . . . . . . . . . . . Distress Signals . | . . . . . . . . . . . Times Spotted 130 | . 4 13 13 11 25 28 . . 13 23 Peak Tracking Total 14 | . 2 4 3 3 6 5 . . 6 14 Tactical Retreats 7 | . . . . . . 3 . . 1 3 Traps | -11 -10 -9 -8 -7 -7 -7 -7 -7 -6 -6 ------- Run | Yrd Mat Mat Mat Fac Gar Fac Low Low Fac Gar Traps Triggered 7 | . 1 . 2 . 1 1 . . 1 1 Indirectly . | . . . . . . . . . . . Trap Hack Attempts . | . . . . . . . . . . . Triggered . | . . . . . . . . . . . Disarmed . | . . . . . . . . . . . Reprogrammed . | . . . . . . . . . . . Reused . | . . . . . . . . . . . Traps Extracted . | . . . . . . . . . . . Installed . | . . . . . . . . . . . Triggered . | . . . . . . . . . . . Machines | -11 -10 -9 -8 -7 -7 -7 -7 -7 -6 -6 ---------- Run | Yrd Mat Mat Mat Fac Gar Fac Low Low Fac Gar Machines Disabled 30 | . . . 1 12 4 13 . . . . Max in Single Turn 6 | . . . 1 6 2 6 . . . . Garrison Relay 2 | . . . . . 2 . . . . . Phase Generator 1 | . . . . . 1 . . . . . Machines Repaired . | . . . . . . . . . . . Machines Dismantled . | . . . . . . . . . . . Machines Sabotaged . | . . . . . . . . . . . Overloaded Fab Kills . | . . . . . . . . . . . Hacking | -11 -10 -9 -8 -7 -7 -7 -7 -7 -6 -6 --------- Run | Yrd Mat Mat Mat Fac Gar Fac Low Low Fac Gar Machines Accessed 16 | . 2 1 . 2 1 6 . . 3 1 Terminals 4 | . . . . . 1 1 . . 1 1 Fabricators 1 | . . . . . . . . . 1 . Repair Stations 3 | . 1 . . . . 2 . . . . Recycling Units 4 | . 1 . . 1 . 2 . . . . Scanalyzers 2 | . . 1 . . . 1 . . . . Garrison Access 2 | . . . . 1 . . . . 1 . Total Hacks 33 | . 6 2 . 4 1 14 . . 5 1 Successful 25 | . 4 2 . 3 1 12 . . 3 . Failed 8 | . 2 . . 1 . 2 . . 2 1 Catastrophic . | . . . . . . . . . . . Database Lockouts . | . . . . . . . . . . . Manual . | . . . . . . . . . . . Terminals 7 | . . . . . 1 2 . . 3 1 Fabricators 1 | . . . . . . . . . 1 . Repair Stations 8 | . 3 . . . . 5 . . . . Recycling Units 11 | . 3 . . 2 . 6 . . . . Scanalyzers 3 | . . 2 . . . 1 . . . . Garrison Access 3 | . . . . 2 . . . . 1 . Terminal Hacks 4 | . . . . . 1 2 . . 1 . Emergency Access Points 1 | . . . . . 1 . . . . . Locate Traps 2 | . . . . . . 1 . . 1 . Transport Status 1 | . . . . . . 1 . . . . Fabricator Hacks 1 | . . . . . . . . . 1 . Build 1 | . . . . . . . . . 1 . Repair Station Hacks 8 | . 3 . . . . 5 . . . . Scan Component 4 | . 2 . . . . 2 . . . . Repair 3 | . 1 . . . . 2 . . . . Refit 1 | . . . . . . 1 . . . . Recycling Unit Hacks 7 | . 1 . . 2 . 4 . . . . Recycle Component 2 | . . . . 1 . 1 . . . . Process 1 | . . . . . . 1 . . . . Report Inventory 1 | . . . . . . 1 . . . . Retrieve Components 3 | . 1 . . 1 . 1 . . . . Scanalyzer 3 | . . 2 . . . 1 . . . . Insert Component 2 | . . 1 . . . 1 . . . . Analyze 1 | . . 1 . . . . . . . . Garrison Access Hacks 2 | . . . . 1 . . . . 1 . Unlock Access 2 | . . . . 1 . . . . 1 . Unauthorized Hacks . | . . . . . . . . . . . Terminals . | . . . . . . . . . . . Fabricators . | . . . . . . . . . . . Repair Stations . | . . . . . . . . . . . Recycling Units . | . . . . . . . . . . . Scanalyzers . | . . . . . . . . . . . Garrison Access . | . . . . . . . . . . . Data Cores Recovered 2 | . . 1 . 1 . . . . . . Used . | . . . . . . . . . . . Hacking Detections 12 | . 2 1 . 1 1 4 . . 3 . Full Trace Events 5 | . 2 . . . . 2 . . 1 . Feedback Events . | . . . . . . . . . . . Feedback Blocked . | . . . . . . . . . . . Robot Schematics Acquired . | . . . . . . . . . . . Robots Built . | . . . . . . . . . . . Authchips . | . . . . . . . . . . . Time . | . . . . . . . . . . . Total Robot Build Rating . | . . . . . . . . . . . Part Schematics Acquired 1 | . . 1 . . . . . . . . Parts Built 2 | . . . . . . . . . 2 . Authchips . | . . . . . . . . . . . Time 39 | . . . . . . . . . 39 . Total Part Build Rating 14 | . . . . . . . . . 14 . Parts Repaired 3 | . 1 . . . . 2 . . . . Time 82 | . 16 . . . . 66 . . . . Parts Recycled 2 | . . . . 1 . 1 . . . . Recycled Matter 573 | . . . . . . 573 . . . . Retrieved Matter . | . . . . . . . . . . . Retrieved Components 14 | . 3 . . 4 . 7 . . . . Parts Scanalyzed 1 | . . 1 . . . . . . . . Part Schematics Acquired 1 | . . 1 . . . . . . . . Parts Damaged . | . . . . . . . . . . . Bothacking | -11 -10 -9 -8 -7 -7 -7 -7 -7 -6 -6 ------------ Run | Yrd Mat Mat Mat Fac Gar Fac Low Low Fac Gar Used RIF Installer 1 | . . . . . 1 . . . . . Robots Hacked 9 | . . . . . . 8 1 . . . Non-combat 7 | . . . . . . 6 1 . . . Combat 2 | . . . . . . 2 . . . . Robot Hacks Applied 10 | . . . . . . 9 1 . . . parse_system 4 | . . . . . . 3 1 . . . no_distress 1 | . . . . . . 1 . . . . ignore_repairs 1 | . . . . . . 1 . . . . find_recycling 1 | . . . . . . 1 . . . . link_fov 2 | . . . . . . 2 . . . . formatsys_low 1 | . . . . . . 1 . . . . Relay Couplers Released 9 | . . . . . 9 . . . . . Machine Destruction 9 | . . . . . 9 . . . . . Attached 2 | . . . . . . 1 . . . 1 Fabnet Peak Effective % . | . . . . . . . . . . . Robots Rewired . | . . . . . . . . . . . Allies Hacked . | . . . . . . . . . . . Hacks Repelled . | . . . . . . . . . . . Allies | -11 -10 -9 -8 -7 -7 -7 -7 -7 -6 -6 -------- Run | Yrd Mat Mat Mat Fac Gar Fac Low Low Fac Gar Total Allies 1 | . . . . . . 1 . . . . Largest Group 1 | . . . . . . 1 . . . . Highest-Rated Group 6 | . . . . . . 6 . . . . Highest-Rated Ally 6 | . . . . . . 6 . . . . Total Orders . | . . . . . . . . . . . Ally Attacks . | . . . . . . . . . . . Total Damage . | . . . . . . . . . . . Kills . | . . . . . . . . . . . Allies Corrupted . | . . . . . . . . . . . Allies Melted . | . . . . . . . . . . . Intel | -11 -10 -9 -8 -7 -7 -7 -7 -7 -6 -6 ------- Run | Yrd Mat Mat Mat Fac Gar Fac Low Low Fac Gar Robot Analysis Total . | . . . . . . . . . . . Derelict Logs Recovered 3 | . . . . . . . 3 . . . Drone Launches . | . . . . . . . . . . . Drone Recoveries . | . . . . . . . . . . . Exploration | -11 -10 -9 -8 -7 -7 -7 -7 -7 -6 -6 ------------- Run | Yrd Mat Mat Mat Fac Gar Fac Low Low Fac Gar Turns Passed 5613 | 119 357 448 551 608 749 1537 649 273 175 147 Spaces Moved 4499 | 60 210 255 280 436 470 1570 387 152 457 222 Core 105 | 24 . . . . . 77 . . . 4 Treads 351 | 36 210 . . . . 105 . . . . Legs . | . . . . . . . . . . . Wheels 1915 | . . 255 280 436 470 474 . . . . Hover . | . . . . . . . . . . . Flight 2128 | . . . . . . 914 387 152 457 218 Fastest Speed 26 | 50 160 105 126 122 107 26 35 105 32 29 Average Speed 101 | 175 160 130 134 122 117 76 166 172 34 32 Slowest Speed 355 | 350 160 145 155 127 140 355 245 245 105 105 Overloaded Moves . | . . . . . . . . . . . Propulsion Burnouts . | . . . . . . . . . . . Robots Hopped 20 | . . . . . . 6 . . 1 13 Cave-ins Triggered 1 | . . . . . . 1 . . . . Exploration Rate (%) 33 | 5 42 35 29 16 67 31 66 19 16 41 Regions Visited 10 Branch Regions 2 Pre-discovered Areas . | . . . . . . . . . . . Known Exits Taken 9 | 1 1 1 1 1 . 1 1 1 1 . Unknown Exits Taken . | . . . . . . . . . . . Scrap Searched 3 | . . . . . . . 2 1 . . Spaces Dug 37 | . . . 6 . . 31 . . . . Terrain Destroyed 278 | . 6 2 24 31 71 144 . . . . Melee . | . . . . . . . . . . . Projectile 36 | . . . 24 1 . 11 . . . . AOE 242 | . 6 2 . 30 71 133 . . . . Terrain Rammed . | . . . . . . . . . . . Walls Destroyed . | . . . . . . . . . . . Machines Disabled . | . . . . . . . . . . . Actions | -11 -10 -9 -8 -7 -7 -7 -7 -7 -6 -6 --------- Run | Yrd Mat Mat Mat Fac Gar Fac Low Low Fac Gar Total 5236 | 74 222 321 390 487 577 1855 393 160 472 285 Wait 171 | . . . 52 . 3 107 . . . 9 Move 4453 | 59 209 254 279 435 469 1557 386 151 454 200 Hop 16 | . . . . . . 6 . . 1 9 Pick Up 159 | 8 6 23 11 18 20 53 3 2 7 8 Fast Attach . | . . . . . . . . . . . Attach 66 | 7 1 5 3 3 9 24 3 . 6 5 Detach 9 | . . 2 . . 1 5 . . . 1 Swap 37 | . 2 10 7 8 3 4 . 1 1 1 Drop 94 | . . 3 9 11 19 44 . 1 2 5 Fire 177 | . 4 23 29 12 45 55 1 5 1 2 Melee . | . . . . . . . . . . . Ram 40 | . . 1 . . . . . . . 39 Kick . | . . . . . . . . . . . Crush . | . . . . . . . . . . . Escape Stasis 14 | . . . . . 8 . . . . 6 Rewire . | . . . . . . . . . . . Trap . | . . . . . . . . . . . Miscellaneous . | . . . . . . . . . . . Route ------- -11/Scrapyard -10/Materials (discovered 4 exits: *Mat x2 / *Min x2) -9/Materials -8/Materials (discovered 2 exits: *Fac / *Sto) -7/Factory (discovered 2 exits: *Low / Gar) -7/Garrison (discovered 2 exits: *Fac x2) -7/Factory (discovered 2 exits: *Fac / *Low) -7/Lower Caves -7/Lower Caves -6/Factory -6/Garrison History --------- Turn | Location | Event 13 | -11/Scrapyard | Identified exit to Materials 13 | -11/Scrapyard | Discovered exit to Materials (range 15) 120 | -11/Scrapyard | Entered Materials 120 | -10/Materials | Evolved 1 slot: Utility x1 127 | -10/Materials | Identified exit to Mines 127 | -10/Materials | Discovered exit to Mines (range 16) 282 | -10/Materials | Identified exit to Materials 282 | -10/Materials | Discovered exit to Materials (range 8) 306 | -10/Materials | Build established: Hacker-Mutant 355 | -10/Materials | Repaired Weight Redist. System 359 | -10/Materials | Discovered exit to Mines (range 8) 448 | -10/Materials | Discovered exit to Materials (range 11) 477 | -10/Materials | Entered another Materials area 477 | -9/Materials | Evolved 2 slots: Power x1, Weapon x1 886 | -9/Materials | Identified exit to Materials 886 | -9/Materials | Discovered exit to Materials (range 15) 909 | -9/Materials | Build established: Hacker-Gunner 925 | -9/Materials | Entered another Materials area 925 | -8/Materials | Evolved 2 slots: Propulsion x1, Utility x1 1243 | -8/Materials | Build established: Hacker-Tank 1361 | -8/Materials | Identified exit to Storage 1361 | -8/Materials | Discovered exit to Storage (range 7) 1466 | -8/Materials | Identified exit to Factory 1466 | -8/Materials | Discovered exit to Factory (range 9) 1476 | -8/Materials | Entered Factory 1476 | -7/Factory | Evolved 2 slots: Propulsion x1, Utility x1 1550 | -7/Factory | Identified exit to Lower Caves 1550 | -7/Factory | Discovered exit to Lower Caves (range 6) 2078 | -7/Factory | Identified exit to Garrison 2084 | -7/Factory | Entered Garrison 2130 | -7/Garrison | Triggered checkpoint 2194 | -7/Garrison | Triggered checkpoint 2304 | -7/Garrison | Phase Generator disabled 2360 | -7/Garrison | Installed Relay Interface Framework 2375 | -7/Garrison | Build established: Hacker-Skirmisher 2411 | -7/Garrison | Identified exit to Factory 2411 | -7/Garrison | Discovered exit to Factory (range 12) 2418 | -7/Garrison | Triggered checkpoint 2492 | -7/Garrison | Garrison Relay disabled 2493 | -7/Garrison | Destroyed 7 combat bots 2608 | -7/Garrison | Triggered checkpoint 2668 | -7/Garrison | Triggered checkpoint 2671 | -7/Garrison | Garrison Relay disabled 2781 | -7/Garrison | Discovered exit to Factory (range 9) 2833 | -7/Garrison | Entered Factory 3418 | -7/Factory | Build established: Bothacker-Skirmisher 3583 | -7/Factory | Lost 3 parts (1p2n) 3614 | -7/Factory | Crushed by falling debris 3696 | -7/Factory | Identified exit to Factory 3696 | -7/Factory | Discovered exit to Factory (range 16) 3748 | -7/Factory | Repaired Remote Datajack? 3762 | -7/Factory | Discovered exit to Lower Caves (range 15) 3905 | -7/Factory | Repaired Mic. Nuclear Core 4206 | -7/Factory | Core integrity fell below 50% 4363 | -7/Factory | Core integrity fell below 20% 4370 | -7/Factory | Entered Lower Caves 4403 | -7/Lower Caves | Identified exit to Lower Caves 4408 | -7/Lower Caves | Learned Factory emergency access door positions 4412 | -7/Lower Caves | Build established: Hacker-Mutant 4478 | -7/Lower Caves | Learned Factory emergency access door positions 5019 | -7/Lower Caves | Entered another Lower Caves area 5284 | -7/Lower Caves | Discovered exit to Factory (range 8) 5292 | -7/Lower Caves | Entered Factory 5292 | -6/Factory | Evolved 2 slots: Utility x2 5427 | -6/Factory | Fabricated Adv. Thermal Shield? 5462 | -6/Factory | Identified exit to Garrison 5467 | -6/Factory | Entered Garrison 5489 | -6/Garrison | Triggered checkpoint 5503 | -6/Garrison | Triggered checkpoint 5527 | -6/Garrison | Triggered checkpoint 5569 | -6/Garrison | Triggered checkpoint 5584 | -6/Garrison | Core integrity fell below 50% 5600 | -6/Garrison | Core integrity fell below 20% 5614 | -6/Garrison | Destroyed by Y-54 Guardian with Flak Gun Last Messages --------------- System corrupted: Matter fused (-9). Acquired 2 matter. Slammed into Y-54 Guardian. Acquired 5 matter. Slammed into Y-54 Guardian. Destabilizing: System corrupted (+1). Slammed into Y-54 Guardian. Machine Analyzer broken. Destabilizing: Short circuit. Mak. Hacking Suite severed. Slammed into Y-54 Guardian. Destabilizing: Core damaged (-42). Slammed into Y-54 Guardian. System corrupted: Substantial component data lost. Slammed into Y-54 Guardian. Destabilizing: Core damaged (-17). Slammed into Y-54 Guardian. Broken Machine Analyzer destroyed. System corrupted by crushing effect (+1). Slammed into Y-54 Guardian. Map ----- +----------------------------------------------------+ | ?????????# ###### #????????????????????????????? | | ?????????# #????# #????????????????????????????? | | ?????????# #????# #????????????????????????????? | | ?????????# ###### #####"""#########????????????? | | ?????????# ??????????? | | ?????????# ??????????? | | ?????????# ??????????? | | ?????????########## ############# ##????????????? | | ??????????????????# ########?????????????????????? | | ??????????????????# ## !#!!#?????????????????????? | | ??????????????????#%##! + !#?????????????????????? | | ??????????????????#%###/####?????????????????????? | | ??????????????????# %%%!!%%#?????????????????????? | | ??????????????????# ###/####?????????????????????? | | ??????????????????#%##! +!!#?????????????????????? | | ??????????????????#%## !#!!#?????????????????????? | | ??????????????????#%########?????????????????????? | | ??????????????????#%########?????????????????????? | | ??????????????????#% ??????????????? | | ??????????????????#%##### #????????????????????? | | ??????????????????#%#????????????????????????????? | | ??????????????????#%#????????????????????????????? | | ??????????????????#%#??????#?????????????????????? | | ??????????????????#%#????? #?????????????????????? | | ????????????#" ###%###### #?????????????????????? | | ????????????#" %%+g%pg@Y#?????????????????????? | | ????????????#" ########## #?????????????????????? | | ?????????????????????????? !#????????????????????? | | ???????????????????????????!#????????????????????? | | ???????????????????????????!#????????????????????? | | ????????????????????????????#????????????????????? | | ?????????????????????????????????????????????????? | | ?????????????????????????????????????????????????? | | ?????????????????????????????????????????????????? | | ?????????????????????????????????????????????????? | | ?????????????????????????????????????????????????? | | | | | | | | | | | | | | | | | | | | | | | | | | | | | +----------------------------------------------------+ Best States ------------- Heat Dissipation 51 Energy Generation 29 Energy Capacity 500 Matter Stores 300 Matter Capacity 300 Sight Range 20 Robot Scan Range 15 Terrain Scan Density 10 ECM Strength 2 Additional Mass Support 9 Base Temperature (-) 100 Resistance: KI 35 Resistance: TH 35 Resistance: EX 35 Resistance: EM 35 Resistance: I 35 Resistance: S 35 Resistance: P 35 Evasion (%) 64 Recoil Reduction 2 Particle Charging 15 Offensive Hacking 60 Relay Coupler Types 2 Relay Coupler Value 77 Authchip Count 1 Item Schematics ----------------- Imp. Light Cannon | -9/Materials | Scanalyzed Robot Schematics ------------------ None Fabricated ------------ Adv. Thermal Shield | x2 | -6/Factory | Preloaded Alien Tech Used ----------------- None Achievements -------------- Cya! Remodeling Challenges ------------ None Game ------ Seed CatalystChipFlamer Manual? 0 Play Time 01:17:09 Cumulative 6.4 hours Start 2024.05.08 @ 22:13:04 End 2024.05.08 @ 23:32:35 Sessions 1 Manual Loads 0 Difficulty Explorer Special Mode None Game No. 7 Rogue 0 Adventurer 0 Explorer 7 Win Type - Total 0 Types 0/0/0/0/0/0/0/0/0 Lore% 3 Gallery% 15 Achievement% 14 Wizard Run 0 Options --------- Layout 0 ASCII 0 Keyboard 0 Movement Mouse Keybinds 0 Fullscreen 1 Font 18/SmallcapsGlow Map View 76x50 Zoom Use 0% Tactical HUD 0 Map Filters NONE Filters NONE Steam 1 RUN: 36851189-b29e-4ae3-91eb-21d962d321e2